[Event "Titled Tuesday Blitz May 16 Late 2023"]
[White "Musovic, Armin"]
[Black "Pakleza, Zbigniew"]
[WhiteFideId "939935"]
[BlackFideId "1119290"]
[WhiteElo "2322"]
[BlackElo "2410"]
[Result "0-1"]
[Round "04"]
[TimeControl "180+2"]
[Date "2023.05.16"]
[WhiteClock "0:00:00"]
[BlackClock "0:00:52"]

1. a3 {[%clk 0:03:00]}  d5 {[%clk 0:02:59]} 2. d4 {[%clk 0:03:00]}  Nf6 {[%clk 0:03:00]} 3. Nf3 {[%clk 0:03:00]}  Bf5 {[%clk 0:02:59]} 4. c4 {[%clk 0:03:00]}  c6 {[%clk 0:02:59]} 5. Nc3 {[%clk 0:03:01]}  Nbd7 {[%clk 0:02:58]} 6. g3 {[%clk 0:03:01]}  e6 {[%clk 0:02:58]} 7. Bg2 {[%clk 0:03:02]}  Be7 {[%clk 0:02:55]} 8. O-O {[%clk 0:03:02]}  O-O {[%clk 0:02:55]} 9. Nd2 {[%clk 0:03:02]}  Nb6 {[%clk 0:02:50]} 10. c5 {[%clk 0:02:53]}  Nbd7 {[%clk 0:02:49]} 11. b4 {[%clk 0:02:54]}  e5 {[%clk 0:02:43]} 12. e3 {[%clk 0:02:48]}  Re8 {[%clk 0:02:36]} 13. a4 {[%clk 0:02:42]}  h5 {[%clk 0:02:23]} 14. Re1 {[%clk 0:02:30]}  e4 {[%clk 0:02:22]} 15. h3 {[%clk 0:02:09]}  Nf8 {[%clk 0:02:19]} 16. Nf1 {[%clk 0:02:02]}  Qd7 {[%clk 0:02:17]} 17. Kh2 {[%clk 0:02:00]}  Bd8 {[%clk 0:02:04]} 18. Bd2 {[%clk 0:01:58]}  Bc7 {[%clk 0:02:02]} 19. b5 {[%clk 0:01:49]}  h4 {[%clk 0:01:54]} 20. Rb1 {[%clk 0:01:41]}  g5 {[%clk 0:01:47]} 21. Ne2 {[%clk 0:01:39]}  Ng6 {[%clk 0:01:43]} 22. Bc3 {[%clk 0:01:16]}  Kg7 {[%clk 0:01:37]} 23. Ng1 {[%clk 0:01:01]}  Rh8 {[%clk 0:01:33]} 24. bxc6 {[%clk 0:00:17]}  bxc6 {[%clk 0:01:34]} 25. Rb7 {[%clk 0:00:16]}  Ng4+ {[%clk 0:01:33]} 26. Qxg4 {[%clk 0:00:10]}  Bxg4 {[%clk 0:01:33]} 27. Rxc7 {[%clk 0:00:08]}  Qxc7 {[%clk 0:01:31]} 28. f4 {[%clk 0:00:06]}  exf3 {[%clk 0:01:25]} 29. Bxf3 {[%clk 0:00:05]}  Bxf3 {[%clk 0:01:08]} 30. Nxf3 {[%clk 0:00:06]}  hxg3+ {[%clk 0:01:08]} 31. Kg1 {[%clk 0:00:05]}  Rxh3 {[%clk 0:01:02]} 32. e4 {[%clk 0:00:05]}  g2 {[%clk 0:00:56]} 33. Kxg2 {[%clk 0:00:03]}  Nf4+ {[%clk 0:00:57]} 34. Kf2 {[%clk 0:00:00]}  Rah8 {[%clk 0:00:52]} 0-1


[Site "https://www.chess.com"]

[Event "Titled Tuesday Blitz May 16 Late 2023"]
[White "Sieciechowicz, Marcin"]
[Black "Rasulov, Vugar"]
[WhiteFideId "1130170"]
[BlackFideId "13402390"]
[WhiteElo "2302"]
[BlackElo "2509"]
[Result "1-0"]
[Round "04"]
[TimeControl "180+2"]
[Date "2023.05.16"]
[WhiteClock "0:00:12"]
[BlackClock "0:00:11"]

1. d4 {[%clk 0:03:00]}  Nf6 {[%clk 0:02:59]} 2. c4 {[%clk 0:03:01]}  e6 {[%clk 0:02:59]} 3. Nc3 {[%clk 0:03:01]}  Bb4 {[%clk 0:02:59]} 4. Qc2 {[%clk 0:03:01]}  c5 {[%clk 0:02:57]} 5. dxc5 {[%clk 0:02:59]}  O-O {[%clk 0:02:57]} 6. Nf3 {[%clk 0:02:59]}  Na6 {[%clk 0:02:55]} 7. g3 {[%clk 0:02:59]}  Nxc5 {[%clk 0:02:55]} 8. Bg2 {[%clk 0:03:00]}  b6 {[%clk 0:02:49]} 9. O-O {[%clk 0:02:56]}  Bb7 {[%clk 0:02:49]} 10. Nb5 {[%clk 0:02:50]}  Nce4 {[%clk 0:02:42]} 11. Ng5 {[%clk 0:02:47]}  d5 {[%clk 0:02:36]} 12. a3 {[%clk 0:02:33]}  Be7 {[%clk 0:02:34]} 13. Nxe4 {[%clk 0:02:27]}  Nxe4 {[%clk 0:02:33]} 14. cxd5 {[%clk 0:02:09]}  exd5 {[%clk 0:02:34]} 15. Rd1 {[%clk 0:02:09]}  Qc8 {[%clk 0:01:51]} 16. Qxc8 {[%clk 0:01:59]}  Rfxc8 {[%clk 0:01:52]} 17. Bf4 {[%clk 0:01:43]}  Rc2 {[%clk 0:01:35]} 18. Rac1 {[%clk 0:01:07]}  Rxc1 {[%clk 0:01:28]} 19. Rxc1 {[%clk 0:01:08]}  Bc5 {[%clk 0:01:25]} 20. e3 {[%clk 0:00:32]}  a5 {[%clk 0:01:10]} 21. Bxe4 {[%clk 0:00:25]}  dxe4 {[%clk 0:01:11]} 22. Bd6 {[%clk 0:00:26]}  Bxd6 {[%clk 0:00:49]} 23. Nxd6 {[%clk 0:00:27]}  Bd5 {[%clk 0:00:49]} 24. Rc8+ {[%clk 0:00:26]}  Rxc8 {[%clk 0:00:49]} 25. Nxc8 {[%clk 0:00:27]}  Kf8 {[%clk 0:00:42]} 26. Nxb6 {[%clk 0:00:27]}  Be6 {[%clk 0:00:34]} 27. Na4 {[%clk 0:00:22]}  Ke7 {[%clk 0:00:34]} 28. Nc3 {[%clk 0:00:20]}  f5 {[%clk 0:00:34]} 29. Kf1 {[%clk 0:00:20]}  Kd6 {[%clk 0:00:33]} 30. b4 {[%clk 0:00:20]}  axb4 {[%clk 0:00:32]} 31. axb4 {[%clk 0:00:21]}  g5 {[%clk 0:00:27]} 32. Ke2 {[%clk 0:00:21]}  Bc4+ {[%clk 0:00:23]} 33. Kd2 {[%clk 0:00:21]}  Ke5 {[%clk 0:00:21]} 34. Ne2 {[%clk 0:00:20]}  Bd3 {[%clk 0:00:15]} 35. Nd4 {[%clk 0:00:18]}  f4 {[%clk 0:00:15]} 36. Kc3 {[%clk 0:00:18]}  fxe3 {[%clk 0:00:14]} 37. fxe3 {[%clk 0:00:18]}  Kd5 {[%clk 0:00:13]} 38. b5 {[%clk 0:00:17]}  Kc5 {[%clk 0:00:09]} 39. Ne6+ {[%clk 0:00:17]}  Kxb5 {[%clk 0:00:07]} 40. Nxg5 {[%clk 0:00:17]}  h5 {[%clk 0:00:07]} 41. Kd4 {[%clk 0:00:17]}  Kb4 {[%clk 0:00:07]} 42. Nxe4 {[%clk 0:00:17]}  Bc2 {[%clk 0:00:08]} 43. Nf6 {[%clk 0:00:17]}  Bg6 {[%clk 0:00:08]} 44. e4 {[%clk 0:00:18]}  Kb5 {[%clk 0:00:08]} 45. Kd5 {[%clk 0:00:17]}  Bf7+ {[%clk 0:00:07]} 46. Kd6 {[%clk 0:00:17]}  Kc4 {[%clk 0:00:08]} 47. e5 {[%clk 0:00:18]}  Kd4 {[%clk 0:00:08]} 48. e6 {[%clk 0:00:18]}  Bg6 {[%clk 0:00:09]} 49. e7 {[%clk 0:00:15]}  Ke3 {[%clk 0:00:09]} 50. e8=Q+ {[%clk 0:00:08]}  Bxe8 {[%clk 0:00:09]} 51. Nxe8 {[%clk 0:00:09]}  h4 {[%clk 0:00:06]} 52. gxh4 {[%clk 0:00:08]}  Kf4 {[%clk 0:00:07]} 53. Nf6 {[%clk 0:00:07]}  Kf5 {[%clk 0:00:07]} 54. Ke7 {[%clk 0:00:08]}  Kg6 {[%clk 0:00:08]} 55. h5+ {[%clk 0:00:08]}  Kg7 {[%clk 0:00:07]} 56. Ke6 {[%clk 0:00:08]}  Kh6 {[%clk 0:00:07]} 57. Kf5 {[%clk 0:00:09]}  Kg7 {[%clk 0:00:08]} 58. Kg5 {[%clk 0:00:09]}  Kh8 {[%clk 0:00:08]} 59. Ng4 {[%clk 0:00:10]}  Kg7 {[%clk 0:00:08]} 60. h6+ {[%clk 0:00:10]}  Kh7 {[%clk 0:00:09]} 61. Kh5 {[%clk 0:00:10]}  Kh8 {[%clk 0:00:10]} 62. Kg6 {[%clk 0:00:11]}  Kg8 {[%clk 0:00:10]} 63. Ne5 {[%clk 0:00:11]}  Kh8 {[%clk 0:00:11]} 64. h3 {[%clk 0:00:11]}  Kg8 {[%clk 0:00:11]} 65. h7+ {[%clk 0:00:12]}  Kh8 {[%clk 0:00:11]} 66. Nf7# {[%clk 0:00:12]} 1-0


[Site "https://www.chess.com"]

[Event "Titled Tuesday Blitz May 16 Late 2023"]
[White "Grigoriants, Sergey"]
[Black "Kushko, Dmitriy"]
[WhiteFideId "4130804"]
[BlackFideId "14162261"]
[WhiteElo "2502"]
[BlackElo "2230"]
[Result "1-0"]
[Round "04"]
[TimeControl "180+2"]
[Date "2023.05.16"]
[WhiteClock "0:00:33"]
[BlackClock "0:00:04"]

1. d4 {[%clk 0:02:57]}  d5 {[%clk 0:02:59]} 2. c4 {[%clk 0:02:57]}  e6 {[%clk 0:02:59]} 3. Nc3 {[%clk 0:02:57]}  Be7 {[%clk 0:02:58]} 4. Nf3 {[%clk 0:02:55]}  Nf6 {[%clk 0:02:58]} 5. Bf4 {[%clk 0:02:56]}  O-O {[%clk 0:02:58]} 6. a3 {[%clk 0:02:56]}  b6 {[%clk 0:02:57]} 7. e3 {[%clk 0:02:52]}  Bb7 {[%clk 0:02:57]} 8. cxd5 {[%clk 0:02:50]}  exd5 {[%clk 0:02:52]} 9. Bd3 {[%clk 0:02:44]}  c5 {[%clk 0:02:51]} 10. O-O {[%clk 0:02:44]}  c4 {[%clk 0:02:45]} 11. Bc2 {[%clk 0:02:42]}  a6 {[%clk 0:02:44]} 12. Ne5 {[%clk 0:02:41]}  b5 {[%clk 0:02:42]} 13. Qf3 {[%clk 0:02:34]}  Nbd7 {[%clk 0:02:31]} 14. Qh3 {[%clk 0:02:32]}  g6 {[%clk 0:02:26]} 15. Rad1 {[%clk 0:02:31]}  Nb6 {[%clk 0:02:11]} 16. Bh6 {[%clk 0:02:25]}  Re8 {[%clk 0:02:09]} 17. f4 {[%clk 0:02:25]}  Ne4 {[%clk 0:01:26]} 18. Bxe4 {[%clk 0:02:05]}  dxe4 {[%clk 0:01:26]} 19. f5 {[%clk 0:02:06]}  Bf6 {[%clk 0:01:10]} 20. fxg6 {[%clk 0:01:51]}  fxg6 {[%clk 0:01:10]} 21. Rxf6 {[%clk 0:01:37]}  Qxf6 {[%clk 0:01:09]} 22. Rf1 {[%clk 0:01:38]}  Qe6 {[%clk 0:01:08]} 23. Rf7 {[%clk 0:01:38]}  Qxf7 {[%clk 0:00:43]} 24. Nxf7 {[%clk 0:01:36]}  Kxf7 {[%clk 0:00:44]} 25. Bf4 {[%clk 0:01:30]}  h5 {[%clk 0:00:42]} 26. Bc7 {[%clk 0:01:22]}  Bc8 {[%clk 0:00:30]} 27. Qh4 {[%clk 0:01:14]}  Nd7 {[%clk 0:00:30]} 28. Nxe4 {[%clk 0:01:10]}  Kg7 {[%clk 0:00:25]} 29. d5 {[%clk 0:00:54]}  a5 {[%clk 0:00:19]} 30. Nd6 {[%clk 0:00:52]}  Rf8 {[%clk 0:00:05]} 31. Qe7+ {[%clk 0:00:47]}  Kg8 {[%clk 0:00:04]} 32. Nxc8 {[%clk 0:00:39]}  Raxc8 {[%clk 0:00:05]} 33. Qxd7 {[%clk 0:00:39]}  b4 {[%clk 0:00:04]} 34. Be5 {[%clk 0:00:33]} 1-0


[Site "https://www.chess.com"]

[Event "Titled Tuesday Blitz May 16 Late 2023"]
[White "Riehle, Marco"]
[Black "De La Colina, Nicolas"]
[WhiteFideId "12904392"]
[BlackFideId "30946921"]
[WhiteElo "2462"]
[BlackElo "2046"]
[Result "1-0"]
[Round "04"]
[TimeControl "180+2"]
[Date "2023.05.16"]
[WhiteClock "0:02:20"]
[BlackClock "0:00:50"]

1. e4 {[%clk 0:02:57]}  c5 {[%clk 0:02:59]} 2. a3 {[%clk 0:02:57]}  g6 {[%clk 0:02:57]} 3. h4 {[%clk 0:02:57]}  h5 {[%clk 0:02:54]} 4. Nc3 {[%clk 0:02:56]}  Bg7 {[%clk 0:02:54]} 5. Bc4 {[%clk 0:02:57]}  Nc6 {[%clk 0:02:50]} 6. d3 {[%clk 0:02:57]}  d6 {[%clk 0:02:48]} 7. Bg5 {[%clk 0:02:58]}  Nf6 {[%clk 0:02:46]} 8. Qd2 {[%clk 0:02:57]}  a6 {[%clk 0:02:44]} 9. Nge2 {[%clk 0:02:56]}  Rb8 {[%clk 0:02:40]} 10. O-O-O {[%clk 0:02:56]}  b5 {[%clk 0:02:40]} 11. Bb3 {[%clk 0:02:56]}  b4 {[%clk 0:02:21]} 12. axb4 {[%clk 0:02:57]}  Rxb4 {[%clk 0:02:14]} 13. f4 {[%clk 0:02:52]}  Bg4 {[%clk 0:02:11]} 14. f5 {[%clk 0:02:50]}  Qa5 {[%clk 0:01:54]} 15. Kb1 {[%clk 0:02:46]}  Nd4 {[%clk 0:01:39]} 16. Nxd4 {[%clk 0:02:40]}  cxd4 {[%clk 0:01:34]} 17. Bxf6 {[%clk 0:02:37]}  dxc3 {[%clk 0:01:32]} 18. Bxc3 {[%clk 0:02:35]}  Bxc3 {[%clk 0:01:30]} 19. Qxc3 {[%clk 0:02:36]}  O-O {[%clk 0:01:03]} 20. fxg6 {[%clk 0:02:33]}  Bxd1 {[%clk 0:01:03]} 21. Bxf7+ {[%clk 0:02:33]}  Rxf7 {[%clk 0:00:58]} 22. gxf7+ {[%clk 0:02:34]}  Kxf7 {[%clk 0:00:59]} 23. Rxd1 {[%clk 0:02:33]}  Ra4 {[%clk 0:00:55]} 24. Rf1+ {[%clk 0:02:31]}  Kg8 {[%clk 0:00:55]} 25. Qc8+ {[%clk 0:02:20]}  Kg7 {[%clk 0:00:50]} 26. Qf8+ {[%clk 0:02:20]} 1-0


[Site "https://www.chess.com"]

[Event "Titled Tuesday Blitz May 16 Late 2023"]
[White "Milikow, Yoav"]
[Black "Sargsyan, Anna M."]
[WhiteFideId "2822237"]
[BlackFideId "13308130"]
[WhiteElo "2410"]
[BlackElo "2284"]
[Result "1-0"]
[Round "04"]
[TimeControl "180+2"]
[Date "2023.05.16"]
[WhiteClock "0:00:11"]
[BlackClock "0:00:04"]

1. d4 {[%clk 0:03:00]}  d5 {[%clk 0:02:57]} 2. c4 {[%clk 0:02:55]}  c6 {[%clk 0:02:57]} 3. Nf3 {[%clk 0:02:49]}  Nf6 {[%clk 0:02:58]} 4. g3 {[%clk 0:02:49]}  Bf5 {[%clk 0:02:56]} 5. Nc3 {[%clk 0:02:46]}  e6 {[%clk 0:02:56]} 6. Nh4 {[%clk 0:02:45]}  Bg6 {[%clk 0:02:54]} 7. Qb3 {[%clk 0:02:40]}  Qb6 {[%clk 0:02:45]} 8. c5 {[%clk 0:02:31]}  Qxb3 {[%clk 0:02:45]} 9. axb3 {[%clk 0:02:32]}  Nbd7 {[%clk 0:02:45]} 10. b4 {[%clk 0:02:29]}  e5 {[%clk 0:02:40]} 11. dxe5 {[%clk 0:02:19]}  Nxe5 {[%clk 0:02:41]} 12. Bf4 {[%clk 0:02:15]}  Ned7 {[%clk 0:02:35]} 13. Nxg6 {[%clk 0:02:08]}  hxg6 {[%clk 0:02:35]} 14. Bg2 {[%clk 0:01:46]}  a6 {[%clk 0:02:31]} 15. O-O {[%clk 0:01:45]}  Be7 {[%clk 0:02:23]} 16. Rfd1 {[%clk 0:01:34]}  Nf8 {[%clk 0:02:10]} 17. Be5 {[%clk 0:01:13]}  Ne6 {[%clk 0:02:09]} 18. e4 {[%clk 0:01:11]}  dxe4 {[%clk 0:01:38]} 19. Nxe4 {[%clk 0:01:11]}  Nxe4 {[%clk 0:01:38]} 20. Bxe4 {[%clk 0:01:12]}  Rd8 {[%clk 0:01:37]} 21. Rxd8+ {[%clk 0:01:09]}  Kxd8 {[%clk 0:01:12]} 22. b5 {[%clk 0:00:48]}  cxb5 {[%clk 0:00:46]} 23. c6 {[%clk 0:00:31]}  bxc6 {[%clk 0:00:31]} 24. Rxa6 {[%clk 0:00:31]}  Rh5 {[%clk 0:00:31]} 25. f4 {[%clk 0:00:25]}  Bf6 {[%clk 0:00:11]} 26. Ra8+ {[%clk 0:00:21]}  Kd7 {[%clk 0:00:10]} 27. Ra7+ {[%clk 0:00:21]}  Kd8 {[%clk 0:00:08]} 28. Bxf6+ {[%clk 0:00:19]}  gxf6 {[%clk 0:00:08]} 29. Rxf7 {[%clk 0:00:20]}  c5 {[%clk 0:00:02]} 30. Rxf6 {[%clk 0:00:18]}  Ke7 {[%clk 0:00:02]} 31. Rxg6 {[%clk 0:00:14]}  c4 {[%clk 0:00:02]} 32. f5 {[%clk 0:00:13]}  Nd4 {[%clk 0:00:02]} 33. g4 {[%clk 0:00:11]}  Rh3 {[%clk 0:00:02]} 34. Rb6 {[%clk 0:00:07]}  Rb3 {[%clk 0:00:02]} 35. Rb7+ {[%clk 0:00:06]}  Kf6 {[%clk 0:00:03]} 36. Rb6+ {[%clk 0:00:07]}  Ke5 {[%clk 0:00:03]} 37. Bg2 {[%clk 0:00:07]}  Rxb2 {[%clk 0:00:03]} 38. f6 {[%clk 0:00:08]}  Ne6 {[%clk 0:00:01]} 39. f7 {[%clk 0:00:08]}  Nf8 {[%clk 0:00:02]} 40. g5 {[%clk 0:00:07]}  c3 {[%clk 0:00:01]} 41. Rc6 {[%clk 0:00:07]}  c2 {[%clk 0:00:02]} 42. Bf1 {[%clk 0:00:07]}  b4 {[%clk 0:00:01]} 43. h4 {[%clk 0:00:07]}  b3 {[%clk 0:00:02]} 44. h5 {[%clk 0:00:07]}  Rb1 {[%clk 0:00:02]} 45. g6 {[%clk 0:00:08]}  c1=Q {[%clk 0:00:02]} 46. Rxc1 {[%clk 0:00:09]}  Rxc1 {[%clk 0:00:03]} 47. g7 {[%clk 0:00:10]}  Ne6 {[%clk 0:00:03]} 48. f8=Q {[%clk 0:00:09]}  Nxf8 {[%clk 0:00:03]} 49. gxf8=Q {[%clk 0:00:10]}  b2 {[%clk 0:00:04]} 50. Qg7+ {[%clk 0:00:10]}  Kf4 {[%clk 0:00:04]} 51. Qxb2 {[%clk 0:00:11]}  Rxf1+ {[%clk 0:00:04]} 52. Kxf1 {[%clk 0:00:11]} 1-0


[Site "https://www.chess.com"]

[Event "Titled Tuesday Blitz May 16 Late 2023"]
[White "Matinian, Nikita"]
[Black "Holt, Conrad"]
[WhiteFideId "24129100"]
[BlackFideId "2034387"]
[WhiteElo "2422"]
[BlackElo "2592"]
[Result "1-0"]
[Round "04"]
[TimeControl "180+2"]
[Date "2023.05.16"]
[WhiteClock "0:02:00"]
[BlackClock "0:01:34"]

1. e4 {[%clk 0:03:00]}  e6 {[%clk 0:03:00]} 2. d4 {[%clk 0:03:00]}  d5 {[%clk 0:03:00]} 3. Nc3 {[%clk 0:03:01]}  Nf6 {[%clk 0:02:59]} 4. Bg5 {[%clk 0:03:00]}  dxe4 {[%clk 0:02:59]} 5. Nxe4 {[%clk 0:03:01]}  Be7 {[%clk 0:02:59]} 6. Bxf6 {[%clk 0:03:02]}  Bxf6 {[%clk 0:03:00]} 7. Nf3 {[%clk 0:03:02]}  Nd7 {[%clk 0:03:01]} 8. Qd2 {[%clk 0:02:59]}  O-O {[%clk 0:03:00]} 9. O-O-O {[%clk 0:02:59]}  Be7 {[%clk 0:03:00]} 10. h4 {[%clk 0:02:58]}  b6 {[%clk 0:02:53]} 11. Bd3 {[%clk 0:02:57]}  Bb7 {[%clk 0:02:53]} 12. Neg5 {[%clk 0:02:56]}  h6 {[%clk 0:02:53]} 13. Qf4 {[%clk 0:02:53]}  c5 {[%clk 0:02:49]} 14. dxc5 {[%clk 0:02:42]}  Qb8 {[%clk 0:02:49]} 15. Bh7+ {[%clk 0:02:38]}  Kh8 {[%clk 0:02:49]} 16. Qxb8 {[%clk 0:02:09]}  Nxb8 {[%clk 0:02:48]} 17. Be4 {[%clk 0:02:08]}  Bxe4 {[%clk 0:02:44]} 18. Nxe4 {[%clk 0:02:09]}  bxc5 {[%clk 0:02:41]} 19. Ne5 {[%clk 0:02:09]}  Kg8 {[%clk 0:02:29]} 20. g4 {[%clk 0:02:09]}  f5 {[%clk 0:02:24]} 21. gxf5 {[%clk 0:02:09]}  Rxf5 {[%clk 0:02:19]} 22. Ng6 {[%clk 0:02:08]}  Kf7 {[%clk 0:02:15]} 23. Rhg1 {[%clk 0:02:01]}  Rf4 {[%clk 0:01:34]} 24. Nxf4 {[%clk 0:02:00]} 1-0


[Site "https://www.chess.com"]

[Event "Titled Tuesday Blitz May 16 Late 2023"]
[White "Zhigalko, Sergei"]
[Black "Fishbein, Alexander"]
[WhiteFideId "13502956"]
[BlackFideId "2000377"]
[WhiteElo "2626"]
[BlackElo "2415"]
[Result "1-0"]
[Round "04"]
[TimeControl "180+2"]
[Date "2023.05.16"]
[WhiteClock "0:00:24"]
[BlackClock "0:00:00"]

1. e4 {[%clk 0:03:00]}  c5 {[%clk 0:02:58]} 2. Nf3 {[%clk 0:02:59]}  d6 {[%clk 0:02:57]} 3. d4 {[%clk 0:03:00]}  cxd4 {[%clk 0:02:57]} 4. Qxd4 {[%clk 0:03:01]}  a6 {[%clk 0:02:56]} 5. Bc4 {[%clk 0:03:00]}  Nc6 {[%clk 0:02:55]} 6. Qd3 {[%clk 0:03:00]}  e6 {[%clk 0:02:47]} 7. Nc3 {[%clk 0:03:00]}  Nf6 {[%clk 0:02:46]} 8. Bf4 {[%clk 0:02:59]}  Be7 {[%clk 0:02:41]} 9. O-O-O {[%clk 0:02:58]}  e5 {[%clk 0:02:37]} 10. Bg5 {[%clk 0:02:58]}  O-O {[%clk 0:02:29]} 11. Bxf6 {[%clk 0:02:58]}  Bxf6 {[%clk 0:02:29]} 12. Qxd6 {[%clk 0:02:58]}  Bg4 {[%clk 0:02:06]} 13. Qxd8 {[%clk 0:02:42]}  Rfxd8 {[%clk 0:02:03]} 14. Nd5 {[%clk 0:02:33]}  Bxf3 {[%clk 0:01:55]} 15. gxf3 {[%clk 0:02:34]}  Nd4 {[%clk 0:01:45]} 16. Rd3 {[%clk 0:02:31]}  Rac8 {[%clk 0:01:40]} 17. Bb3 {[%clk 0:02:30]}  Bg5+ {[%clk 0:01:36]} 18. Kb1 {[%clk 0:02:27]}  Kf8 {[%clk 0:01:30]} 19. f4 {[%clk 0:02:15]}  Nxb3 {[%clk 0:00:56]} 20. Rxb3 {[%clk 0:02:13]}  exf4 {[%clk 0:00:52]} 21. Rxb7 {[%clk 0:02:11]}  f5 {[%clk 0:00:32]} 22. Nc7 {[%clk 0:01:35]}  Rd6 {[%clk 0:00:19]} 23. exf5 {[%clk 0:01:33]}  Bf6 {[%clk 0:00:18]} 24. Ne6+ {[%clk 0:01:31]}  Kg8 {[%clk 0:00:18]} 25. Rg1 {[%clk 0:01:05]}  Rd2 {[%clk 0:00:15]} 26. Nxg7 {[%clk 0:01:01]}  Bxg7 {[%clk 0:00:01]} 27. Rgxg7+ {[%clk 0:00:57]}  Kh8 {[%clk 0:00:02]} 28. Rxh7+ {[%clk 0:00:57]}  Kg8 {[%clk 0:00:02]} 29. c3 {[%clk 0:00:36]}  Rxf2 {[%clk 0:00:02]} 30. f6 {[%clk 0:00:31]}  Rg2 {[%clk 0:00:00]} 31. f7+ {[%clk 0:00:24]} 1-0


[Site "https://www.chess.com"]

[Event "Titled Tuesday Blitz May 16 Late 2023"]
[White "Koellner, Ruben Gideon"]
[Black "Paravyan, David"]
[WhiteFideId "12993093"]
[BlackFideId "4194985"]
[WhiteElo "2314"]
[BlackElo "2563"]
[Result "0-1"]
[Round "04"]
[TimeControl "180+2"]
[Date "2023.05.16"]
[WhiteClock "0:00:11"]
[BlackClock "0:00:05"]

1. d4 {[%clk 0:03:00]}  d5 {[%clk 0:03:00]} 2. Nf3 {[%clk 0:03:00]}  Nf6 {[%clk 0:03:00]} 3. e3 {[%clk 0:03:00]}  e6 {[%clk 0:02:52]} 4. Nbd2 {[%clk 0:02:59]}  b6 {[%clk 0:02:50]} 5. Bd3 {[%clk 0:02:56]}  Bb7 {[%clk 0:02:50]} 6. Ne5 {[%clk 0:02:57]}  g6 {[%clk 0:02:33]} 7. f4 {[%clk 0:02:56]}  Bg7 {[%clk 0:02:34]} 8. Qf3 {[%clk 0:02:57]}  O-O {[%clk 0:02:34]} 9. g4 {[%clk 0:02:54]}  c5 {[%clk 0:02:24]} 10. c3 {[%clk 0:02:54]}  Nc6 {[%clk 0:02:15]} 11. g5 {[%clk 0:02:51]}  Nxe5 {[%clk 0:02:08]} 12. fxe5 {[%clk 0:02:47]}  Ne4 {[%clk 0:02:08]} 13. h4 {[%clk 0:02:45]}  b5 {[%clk 0:01:28]} 14. Bxb5 {[%clk 0:02:26]}  Qb6 {[%clk 0:01:15]} 15. Bd3 {[%clk 0:02:25]}  Nxd2 {[%clk 0:01:11]} 16. Kxd2 {[%clk 0:02:09]}  Ba6 {[%clk 0:01:07]} 17. Bxa6 {[%clk 0:02:01]}  Qxa6 {[%clk 0:01:07]} 18. Qe2 {[%clk 0:02:02]}  Qa4 {[%clk 0:01:04]} 19. Qd1 {[%clk 0:01:59]}  Qa6 {[%clk 0:00:51]} 20. Qe2 {[%clk 0:01:58]}  Qa4 {[%clk 0:00:51]} 21. h5 {[%clk 0:01:49]}  Rfb8 {[%clk 0:00:44]} 22. hxg6 {[%clk 0:01:31]}  hxg6 {[%clk 0:00:45]} 23. Qh2 {[%clk 0:01:30]}  Rb7 {[%clk 0:00:44]} 24. Qh7+ {[%clk 0:01:28]}  Kf8 {[%clk 0:00:45]} 25. Rf1 {[%clk 0:01:27]}  Rab8 {[%clk 0:00:43]} 26. Qxg6 {[%clk 0:01:16]}  Qa6 {[%clk 0:00:31]} 27. Qd3 {[%clk 0:01:15]}  Rxb2+ {[%clk 0:00:31]} 28. Bxb2 {[%clk 0:01:13]}  Rxb2+ {[%clk 0:00:32]} 29. Qc2 {[%clk 0:01:14]}  Rxc2+ {[%clk 0:00:31]} 30. Kxc2 {[%clk 0:01:15]}  Qe2+ {[%clk 0:00:32]} 31. Kb3 {[%clk 0:01:14]}  Qc4+ {[%clk 0:00:29]} 32. Kb2 {[%clk 0:01:12]}  Qe2+ {[%clk 0:00:27]} 33. Kb3 {[%clk 0:01:12]}  c4+ {[%clk 0:00:27]} 34. Ka3 {[%clk 0:01:06]}  Ke8 {[%clk 0:00:27]} 35. Rfc1 {[%clk 0:00:50]}  Bf8+ {[%clk 0:00:27]} 36. Ka4 {[%clk 0:00:51]}  Qb2 {[%clk 0:00:26]} 37. Rab1 {[%clk 0:00:41]}  Qa3+ {[%clk 0:00:26]} 38. Kb5 {[%clk 0:00:41]}  Kd7 {[%clk 0:00:26]} 39. Rf1 {[%clk 0:00:38]}  Be7 {[%clk 0:00:16]} 40. Rxf7 {[%clk 0:00:31]}  Qxa2 {[%clk 0:00:16]} 41. Rb4 {[%clk 0:00:21]}  Ke8 {[%clk 0:00:06]} 42. g6 {[%clk 0:00:10]}  Bxb4 {[%clk 0:00:06]} 43. Kxb4 {[%clk 0:00:11]}  Qb1+ {[%clk 0:00:05]} 44. Kc5 {[%clk 0:00:11]}  Qb6# {[%clk 0:00:05]} 0-1


[Site "https://www.chess.com"]

[Event "Titled Tuesday Blitz May 16 Late 2023"]
[White "Tomiello, Lucas Costamilan"]
[Black "Tang, Andrew"]
[WhiteFideId "22701940"]
[BlackFideId "2059630"]
[WhiteElo "2085"]
[BlackElo "2596"]
[Result "0-1"]
[Round "04"]
[TimeControl "180+2"]
[Date "2023.05.16"]
[WhiteClock "0:00:00"]
[BlackClock "0:00:32"]

1. e4 {[%clk 0:03:00]}  b5 {[%clk 0:02:59]} 2. Bxb5 {[%clk 0:02:59]}  f5 {[%clk 0:03:00]} 3. exf5 {[%clk 0:02:54]}  c6 {[%clk 0:03:00]} 4. Qh5+ {[%clk 0:02:47]}  g6 {[%clk 0:03:00]} 5. fxg6 {[%clk 0:02:48]}  Bg7 {[%clk 0:03:01]} 6. gxh7+ {[%clk 0:02:39]}  Kf8 {[%clk 0:03:01]} 7. Be2 {[%clk 0:01:51]}  Nf6 {[%clk 0:02:56]} 8. Qf3 {[%clk 0:01:51]}  d5 {[%clk 0:02:45]} 9. d4 {[%clk 0:01:51]}  Rxh7 {[%clk 0:02:40]} 10. Nc3 {[%clk 0:01:50]}  Qb6 {[%clk 0:02:38]} 11. Nh3 {[%clk 0:01:15]}  Bxh3 {[%clk 0:02:34]} 12. gxh3 {[%clk 0:01:15]}  Nd7 {[%clk 0:02:21]} 13. Qd3 {[%clk 0:01:14]}  Re8 {[%clk 0:02:11]} 14. Bf4 {[%clk 0:01:09]}  e5 {[%clk 0:01:48]} 15. dxe5 {[%clk 0:01:07]}  Nxe5 {[%clk 0:01:48]} 16. Bxe5 {[%clk 0:00:53]}  Rxe5 {[%clk 0:01:49]} 17. O-O-O {[%clk 0:00:53]}  Bh6+ {[%clk 0:01:45]} 18. Kb1 {[%clk 0:00:52]}  Rb7 {[%clk 0:01:45]} 19. b3 {[%clk 0:00:50]}  c5 {[%clk 0:01:34]} 20. Rhg1 {[%clk 0:00:40]}  d4 {[%clk 0:01:27]} 21. Qg6 {[%clk 0:00:34]}  Bg7 {[%clk 0:01:25]} 22. Na4 {[%clk 0:00:34]}  Qc6 {[%clk 0:01:23]} 23. Bg4 {[%clk 0:00:04]}  Qb5 {[%clk 0:00:35]} 24. Nb2 {[%clk 0:00:04]}  Nd5 {[%clk 0:00:34]} 25. Ka1 {[%clk 0:00:00]}  Nc3 {[%clk 0:00:32]} 0-1


[Site "https://www.chess.com"]